[Event "*** Titled Tuesday Blitz"]
[Site "Chess.com"]
[Date "2018.06.05"]
[Round "3"]
[White "Triumphmate"]
[Black "jlucasvf"]
[Result "0-1"]
[WhiteElo "2163"]
[BlackElo "2282"]
[TimeControl "180+2"]
[EndTime "13:44:03 PDT"]
[Termination "jlucasvf won by resignation"]

1. e4 {[%clk 0:03:01.9]} 1... e5 {[%clk 0:03:00.2]} 2. Nf3 {[%clk 0:03:02.6]}
2... Nc6 {[%clk 0:02:58.7]} 3. Nc3 {[%clk 0:03:03.8]} 3... Nf6 {[%clk 0:02:59]}
4. Bb5 {[%clk 0:03:04.7]} 4... Bc5 {[%clk 0:02:56.8]} 5. Nxe5 {[%clk 0:03:05]}
5... Nxe5 {[%clk 0:02:57.3]} 6. d4 {[%clk 0:03:05.2]} 6... Bd6 {[%clk
0:02:58.2]} 7. f4 {[%clk 0:03:05.5]} 7... Neg4 {[%clk 0:02:54.6]} 8. e5 {[%clk
0:03:03.2]} 8... Bb4 {[%clk 0:02:52.8]} 9. h3 {[%clk 0:02:44.4]} 9... Nh6 {[%clk
0:02:24.1]} 10. exf6 {[%clk 0:02:34.8]} 10... Qxf6 {[%clk 0:02:26]} 11. O-O
{[%clk 0:02:22.9]} 11... O-O {[%clk 0:02:24.4]} 12. Ne4 {[%clk 0:02:00.8]} 12...
Qb6 {[%clk 0:02:23.1]} 13. a4 {[%clk 0:01:53.5]} 13... d5 {[%clk 0:02:18]} 14.
Ng5 {[%clk 0:01:53.1]} 14... Nf5 {[%clk 0:02:11.9]} 15. c3 {[%clk 0:01:51.2]}
15... Be7 {[%clk 0:02:11.9]} 16. Bd3 {[%clk 0:01:51.5]} 16... h6 {[%clk
0:02:12]} 17. Nf3 {[%clk 0:01:50]} 17... c5 {[%clk 0:02:12.2]} 18. Bxf5 {[%clk
0:01:47.4]} 18... Bxf5 {[%clk 0:02:12.1]} 19. Qe2 {[%clk 0:01:38.1]} 19... Rfe8
{[%clk 0:02:06.1]} 20. Qf2 {[%clk 0:01:36.6]} 20... c4 {[%clk 0:01:51.5]} 21.
Ne5 {[%clk 0:01:31.3]} 21... f6 {[%clk 0:01:50]} 22. Ng4 {[%clk 0:01:31.5]}
22... Bd3 {[%clk 0:01:45]} 23. Re1 {[%clk 0:01:30.2]} 23... Bd6 {[%clk
0:01:40.2]} 24. Be3 {[%clk 0:01:24.9]} 24... Re7 {[%clk 0:01:36.2]} 25. f5
{[%clk 0:01:20.4]} 25... Rae8 {[%clk 0:01:34.8]} 26. Bxh6 {[%clk 0:01:14.2]}
26... Rxe1+ {[%clk 0:01:22.6]} 27. Rxe1 {[%clk 0:01:16.1]} 27... Rxe1+ {[%clk
0:01:22.9]} 28. Qxe1 {[%clk 0:01:17.6]} 28... Bxf5 {[%clk 0:00:53.4]} 29. Qe2
{[%clk 0:00:47.1]} 29... Qd8 {[%clk 0:00:49.8]} 30. Bc1 {[%clk 0:00:44.7]} 30...
Qe7 {[%clk 0:00:49]} 31. Qf3 {[%clk 0:00:44.4]} 31... Qe1+ {[%clk 0:00:47.7]}
32. Qf1 {[%clk 0:00:41.2]} 32... Qe6 {[%clk 0:00:46]} 33. Ne3 {[%clk 0:00:38.7]}
33... Be4 {[%clk 0:00:47]} 34. Qf2 {[%clk 0:00:38.3]} 34... f5 {[%clk
0:00:47.8]} 35. Nc2 {[%clk 0:00:35.1]} 35... Bxc2 {[%clk 0:00:47.8]} 36. Be3
{[%clk 0:00:31.6]} 36... Be4 {[%clk 0:00:46.6]} 37. Bf4 {[%clk 0:00:31.8]} 37...
Bd3 {[%clk 0:00:46.3]} 38. Bxd6 {[%clk 0:00:31.2]} 38... Qxd6 {[%clk 0:00:48.2]}
39. Qe3 {[%clk 0:00:31.9]} 39... Kf7 {[%clk 0:00:49]} 40. Qg5 {[%clk 0:00:32.3]}
40... Qf6 {[%clk 0:00:49.2]} 41. Qd2 {[%clk 0:00:33.5]} 41... Qe6 {[%clk
0:00:50]} 42. Qg5 {[%clk 0:00:33.5]} 42... Qf6 {[%clk 0:00:50]} 43. Qd2 {[%clk
0:00:33.7]} 43... g5 {[%clk 0:00:50.7]} 44. Qe3 {[%clk 0:00:34.3]} 44... f4
{[%clk 0:00:50.7]} 45. Qf3 {[%clk 0:00:33.8]} 45... Be4 {[%clk 0:00:51.1]} 46.
Qh5+ {[%clk 0:00:34.5]} 46... Kg7 {[%clk 0:00:52]} 47. Qe8 {[%clk 0:00:34.2]}
47... f3 {[%clk 0:00:48.3]} 48. gxf3 {[%clk 0:00:33.8]} 48... Qxf3 {[%clk
0:00:49.7]} 49. Qe7+ {[%clk 0:00:34.8]} 49... Qf7 {[%clk 0:00:50.2]} 50. Qe5+
{[%clk 0:00:33.1]} 50... Qf6 {[%clk 0:00:51]} 51. Qc7+ {[%clk 0:00:33.2]} 51...
Kh6 {[%clk 0:00:51.9]} 52. Qxb7 {[%clk 0:00:30.4]} 52... Qf3 {[%clk 0:00:46.3]}
53. Qc6+ {[%clk 0:00:31.4]} 53... Kh5 {[%clk 0:00:43.3]} 54. Qe8+ {[%clk
0:00:32.4]} 54... Kh4 {[%clk 0:00:43.9]} 55. Qh8+ {[%clk 0:00:32.2]} 55... Kg3
{[%clk 0:00:44.8]} 56. Qe5+ {[%clk 0:00:33.7]} 56... Kxh3 {[%clk 0:00:45]} 57.
Qxg5 {[%clk 0:00:33]} 57... Qg3+ {[%clk 0:00:45.5]} 58. Qxg3+ {[%clk 0:00:32.6]}
58... Kxg3 {[%clk 0:00:47.4]} 59. Kf1 {[%clk 0:00:34]} 59... a5 {[%clk
0:00:48.1]} 60. Ke2 {[%clk 0:00:35.9]} 60... Bc2 {[%clk 0:00:49.2]} 61. Ke3
{[%clk 0:00:36.9]} 61... Bxa4 {[%clk 0:00:50.1]} 62. Kd2 {[%clk 0:00:38.1]}
62... Kf2 {[%clk 0:00:50.5]} 63. Kc1 {[%clk 0:00:39.9]} 63... Bb3 {[%clk
0:00:52]} 64. Kb1 {[%clk 0:00:41.8]} 64... Ke2 {[%clk 0:00:53.6]} 65. Kc1 {[%clk
0:00:42.5]} 65... Ke1 {[%clk 0:00:54.6]} 66. Kb1 {[%clk 0:00:44.4]} 66... Kd2
{[%clk 0:00:56.5]} 67. Ka1 {[%clk 0:00:46.3]} 67... a4 {[%clk 0:00:58.4]} 68.
Kb1 {[%clk 0:00:47.5]} 68... a3 {[%clk 0:01:00]} 69. Ka1 {[%clk 0:00:47.9]}
69... axb2+ {[%clk 0:01:00.9]} 70. Kxb2 {[%clk 0:00:49.8]} 70... Kd3 {[%clk
0:01:02.8]} 71. Ka3 {[%clk 0:00:51.1]} 71... Bd1 {[%clk 0:01:02]} 72. Kb2 {[%clk
0:00:51.8]} 72... Bg4 {[%clk 0:01:03]} 73. Ka3 {[%clk 0:00:50.3]} 73... Kxc3
{[%clk 0:01:04.9]} 74. Ka4 {[%clk 0:00:50.6]} 74... Kxd4 {[%clk 0:01:06.8]} 75.
Ka3 {[%clk 0:00:43.7]} 75... c3 {[%clk 0:01:08.7]} 76. Ka2 {[%clk 0:00:45]}
76... Kd3 {[%clk 0:01:08.1]} 77. Kb1 {[%clk 0:00:46.2]} 77... Kd2 {[%clk
0:01:08.9]} 78. Ka1 {[%clk 0:00:45.7]} 78... c2 {[%clk 0:01:09.2]} 79. Ka2
{[%clk 0:00:47.6]} 79... c1=Q {[%clk 0:01:10.2]} 80. Kb3 {[%clk 0:00:31.8]}
80... Qc3+ {[%clk 0:01:05.5]} 81. Ka2 {[%clk 0:00:30.9]} 81... Qb4 {[%clk
0:01:05.8]} 0-1

[Event "*** Titled Tuesday Blitz"]
[Site "Chess.com"]
[Date "2018.06.05"]
[Round "3"]
[White "carlesdc96"]
[Black "Anton_Demchenko"]
[Result "1-0"]
[WhiteElo "2564"]
[BlackElo "2764"]
[TimeControl "180+2"]
[EndTime "13:44:05 PDT"]
[Termination "carlesdc96 won on time"]

1. e4 {[%clk 0:03:01.9]} 1... c5 {[%clk 0:03:00.3]} 2. Nf3 {[%clk 0:03:02.8]}
2... d6 {[%clk 0:03:01.7]} 3. Bb5+ {[%clk 0:03:03.1]} 3... Nc6 {[%clk
0:03:01.4]} 4. O-O {[%clk 0:03:03.3]} 4... Bd7 {[%clk 0:03:00.9]} 5. Re1 {[%clk
0:03:03.9]} 5... Nf6 {[%clk 0:03:01.6]} 6. h3 {[%clk 0:03:03.9]} 6... g5 {[%clk
0:03:02.3]} 7. Bxc6 {[%clk 0:02:44.8]} 7... Bxc6 {[%clk 0:02:59.5]} 8. e5 {[%clk
0:02:45.8]} 8... dxe5 {[%clk 0:02:53.2]} 9. Nxe5 {[%clk 0:02:45.2]} 9... Qd5
{[%clk 0:02:43.6]} 10. Nxc6 {[%clk 0:02:44.4]} 10... Qxc6 {[%clk 0:02:45.5]} 11.
d3 {[%clk 0:02:44]} 11... O-O-O {[%clk 0:02:44.1]} 12. Nd2 {[%clk 0:02:44]}
12... Rg8 {[%clk 0:02:44.7]} 13. Qf3 {[%clk 0:02:44.2]} 13... Qxf3 {[%clk
0:02:19.5]} 14. Nxf3 {[%clk 0:02:46.1]} 14... h6 {[%clk 0:02:21]} 15. Ne5 {[%clk
0:02:39.1]} 15... Rg7 {[%clk 0:02:22.2]} 16. a4 {[%clk 0:02:39.6]} 16... Nd5
{[%clk 0:02:19.5]} 17. Bd2 {[%clk 0:02:38.6]} 17... f6 {[%clk 0:02:17.4]} 18.
Nc4 {[%clk 0:02:38.4]} 18... e5 {[%clk 0:02:18.5]} 19. Rad1 {[%clk 0:02:22.8]}
19... h5 {[%clk 0:02:08.3]} 20. Ne3 {[%clk 0:02:10.2]} 20... Nc7 {[%clk
0:02:06]} 21. Nf5 {[%clk 0:02:10.2]} 21... Rgd7 {[%clk 0:02:07]} 22. b3 {[%clk
0:02:07.5]} 22... h4 {[%clk 0:02:05]} 23. Re4 {[%clk 0:02:05.9]} 23... Ne6
{[%clk 0:02:03.7]} 24. Be3 {[%clk 0:02:04.8]} 24... b6 {[%clk 0:02:02.7]} 25. g3
{[%clk 0:01:09.6]} 25... hxg3 {[%clk 0:02:03.6]} 26. fxg3 {[%clk 0:01:11.5]}
26... Kb7 {[%clk 0:02:04.9]} 27. Rf1 {[%clk 0:01:08.9]} 27... Rh7 {[%clk
0:01:56.6]} 28. Kg2 {[%clk 0:01:08.5]} 28... Rdd7 {[%clk 0:01:43]} 29. h4 {[%clk
0:01:03.1]} 29... gxh4 {[%clk 0:01:35.7]} 30. gxh4 {[%clk 0:01:05]} 30... a6
{[%clk 0:01:18.3]} 31. Rg4 {[%clk 0:01:05]} 31... b5 {[%clk 0:01:04.6]} 32. axb5
{[%clk 0:01:04]} 32... axb5 {[%clk 0:01:06.5]} 33. Rg6 {[%clk 0:01:05.3]} 33...
Rdf7 {[%clk 0:01:08.1]} 34. Ng3 {[%clk 0:00:54.8]} 34... Be7 {[%clk 0:01:01.3]}
35. h5 {[%clk 0:00:47.7]} 35... Nf8 {[%clk 0:00:51.7]} 36. Rg4 {[%clk
0:00:46.7]} 36... Kc6 {[%clk 0:00:45.4]} 37. h6 {[%clk 0:00:43.7]} 37... Nd7
{[%clk 0:00:37.5]} 38. Nf5 {[%clk 0:00:43]} 38... Bf8 {[%clk 0:00:38.6]} 39. Ra1
{[%clk 0:00:39.1]} 39... Kb7 {[%clk 0:00:10.5]} 40. Ra5 {[%clk 0:00:36.6]} 40...
b4 {[%clk 0:00:12]} 41. Kh3 {[%clk 0:00:30.5]} 41... Rh8 {[%clk 0:00:10.9]} 42.
Kh4 {[%clk 0:00:29.6]} 42... Rhh7 {[%clk 0:00:05.8]} 43. Kh5 {[%clk 0:00:30.6]}
43... Kb8 {[%clk 0:00:06.4]} 44. Ra1 {[%clk 0:00:30.8]} 44... Kb7 {[%clk
0:00:07.4]} 45. Rg8 {[%clk 0:00:25.3]} 45... Nb6 {[%clk 0:00:03.9]} 46. Kg6
{[%clk 0:00:21.2]} 46... Nd7 {[%clk 0:00:05.1]} 47. Kh5 {[%clk 0:00:20.5]} 47...
Nb6 {[%clk 0:00:05.5]} 48. Rag1 {[%clk 0:00:21.6]} 48... Nd7 {[%clk 0:00:06.6]}
49. R1g6 {[%clk 0:00:21.2]} 49... Kc6 {[%clk 0:00:04.6]} 50. Rg2 {[%clk
0:00:18.2]} 50... Kd5 {[%clk 0:00:05.8]} 51. Bd2 {[%clk 0:00:18.6]} 51... e4
{[%clk 0:00:05.1]} 52. dxe4+ {[%clk 0:00:18.8]} 52... Kxe4 {[%clk 0:00:07]} 53.
Rf2 {[%clk 0:00:19.8]} 53... Kd5 {[%clk 0:00:06.3]} 54. Rg4 {[%clk 0:00:20.6]}
54... Ne5 {[%clk 0:00:06.4]} 55. Rg1 {[%clk 0:00:21.3]} 55... Ke6 {[%clk
0:00:07.5]} 56. Bc1 {[%clk 0:00:21.1]} 56... Rh8 {[%clk 0:00:04.3]} 57. Bb2
{[%clk 0:00:21]} 57... Rhh7 {[%clk 0:00:03.6]} 58. Bxe5 {[%clk 0:00:21.9]} 58...
fxe5 {[%clk 0:00:05.1]} 59. Rg6+ {[%clk 0:00:22.9]} 59... Kd5 {[%clk 0:00:05.1]}
60. Ne3+ {[%clk 0:00:24]} 60... Ke4 {[%clk 0:00:06.3]} 61. Rxf7 {[%clk 0:00:25]}
61... Rxf7 {[%clk 0:00:08.2]} 62. Ng4 {[%clk 0:00:26.3]} 62... Bxh6 {[%clk
0:00:05.6]} 63. Rxh6 {[%clk 0:00:22.6]} 63... Rf1 {[%clk 0:00:04.3]} 64. Rc6
{[%clk 0:00:22.3]} 64... Kd4 {[%clk 0:00:05.3]} 65. Re6 {[%clk 0:00:18.3]} 65...
e4 {[%clk 0:00:06.1]} 66. Rd6+ {[%clk 0:00:18.7]} 66... Kc3 {[%clk 0:00:06.8]}
67. Ne3 {[%clk 0:00:19.9]} 67... Rf3 {[%clk 0:00:05.6]} 68. Nc4 {[%clk
0:00:16.4]} 68... Kxc2 {[%clk 0:00:06.6]} 69. Na5 {[%clk 0:00:17.8]} 69... e3
{[%clk 0:00:04.7]} 70. Re6 {[%clk 0:00:19]} 70... c4 {[%clk 0:00:03]} 71. Nxc4
{[%clk 0:00:19.2]} 71... Kxb3 {[%clk 0:00:04.2]} 72. Nxe3 {[%clk 0:00:20.4]}
72... Kc3 {[%clk 0:00:03]} 73. Kg4 {[%clk 0:00:21.7]} 1-0

[Event "*** Titled Tuesday Blitz"]
[Site "Chess.com"]
[Date "2018.06.05"]
[Round "3"]
[White "cukus"]
[Black "guillembaches"]
[Result "1-0"]
[WhiteElo "2370"]
[BlackElo "2220"]
[TimeControl "180+2"]
[EndTime "13:44:07 PDT"]
[Termination "cukus won on time"]

1. e4 {[%clk 0:03:01.9]} 1... c5 {[%clk 0:02:56.7]} 2. Nf3 {[%clk 0:03:00]} 2...
d6 {[%clk 0:02:57.7]} 3. d4 {[%clk 0:02:57.5]} 3... cxd4 {[%clk 0:02:59.6]} 4.
Nxd4 {[%clk 0:02:59.4]} 4... Nf6 {[%clk 0:03:00.4]} 5. Nc3 {[%clk 0:03:00.8]}
5... Nc6 {[%clk 0:03:01.6]} 6. Bg5 {[%clk 0:03:01.9]} 6... e6 {[%clk 0:03:02.2]}
7. Qd3 {[%clk 0:03:03.2]} 7... h6 {[%clk 0:03:02.2]} 8. Bh4 {[%clk 0:03:00.4]}
8... Qb6 {[%clk 0:02:49.5]} 9. Nb3 {[%clk 0:02:59.1]} 9... Ne5 {[%clk
0:02:43.6]} 10. Qd2 {[%clk 0:02:46.6]} 10... g5 {[%clk 0:02:26.1]} 11. Bg3
{[%clk 0:02:46.2]} 11... Be7 {[%clk 0:02:23.4]} 12. O-O-O {[%clk 0:02:42.6]}
12... a6 {[%clk 0:02:12.9]} 13. Kb1 {[%clk 0:02:41.9]} 13... Bd7 {[%clk
0:02:09.6]} 14. f3 {[%clk 0:02:29.6]} 14... Rc8 {[%clk 0:01:57.6]} 15. h4 {[%clk
0:02:27.2]} 15... Rg8 {[%clk 0:01:50.8]} 16. hxg5 {[%clk 0:02:25.3]} 16... hxg5
{[%clk 0:01:52.7]} 17. Rh6 {[%clk 0:02:23.8]} 17... Qc7 {[%clk 0:01:42.4]} 18.
f4 {[%clk 0:01:42.6]} 18... gxf4 {[%clk 0:01:40.6]} 19. Bxf4 {[%clk 0:01:19.8]}
19... b5 {[%clk 0:01:17.3]} 20. a3 {[%clk 0:01:19.2]} 20... Nfg4 {[%clk
0:01:08.2]} 21. Rh7 {[%clk 0:01:09.1]} 21... Nf6 {[%clk 0:01:07.2]} 22. Rh6
{[%clk 0:00:56.9]} 22... Nfg4 {[%clk 0:01:07.7]} 23. Rh1 {[%clk 0:00:53.4]}
23... Bc6 {[%clk 0:00:55.4]} 24. Nd4 {[%clk 0:00:48.9]} 24... Bd7 {[%clk
0:00:49.9]} 25. Nf3 {[%clk 0:00:45.9]} 25... Qb6 {[%clk 0:00:38.4]} 26. Nxe5
{[%clk 0:00:43.1]} 26... Nxe5 {[%clk 0:00:27.6]} 27. Bxe5 {[%clk 0:00:44.2]}
27... b4 {[%clk 0:00:28.9]} 28. axb4 {[%clk 0:00:41.8]} 28... Qxb4 {[%clk
0:00:29.8]} 29. Bxd6 {[%clk 0:00:33.1]} 29... Bxd6 {[%clk 0:00:28.1]} 30. Qxd6
{[%clk 0:00:34.1]} 30... Qb7 {[%clk 0:00:29.1]} 31. Qd4 {[%clk 0:00:27.3]} 31...
Rb8 {[%clk 0:00:28.8]} 32. Ne2 {[%clk 0:00:22.3]} 32... Bc6 {[%clk 0:00:23.9]}
33. Rh8 {[%clk 0:00:20.4]} 33... Rxh8 {[%clk 0:00:21.8]} 34. Qxh8+ {[%clk
0:00:22.3]} 34... Ke7 {[%clk 0:00:22.5]} 35. Qh4+ {[%clk 0:00:22]} 35... Ke8
{[%clk 0:00:23.8]} 36. Qh8+ {[%clk 0:00:14.3]} 36... Ke7 {[%clk 0:00:24.5]} 37.
Qd4 {[%clk 0:00:14.6]} 37... Bxe4 {[%clk 0:00:25]} 38. Nc1 {[%clk 0:00:07.8]}
38... Rc8 {[%clk 0:00:19.5]} 39. Bd3 {[%clk 0:00:07.6]} 39... Bxg2 {[%clk
0:00:20.3]} 40. Qh4+ {[%clk 0:00:07.9]} 40... Ke8 {[%clk 0:00:20.9]} 41. Qh8+
{[%clk 0:00:07.9]} 41... Ke7 {[%clk 0:00:22]} 42. Qh4+ {[%clk 0:00:09.4]} 42...
Ke8 {[%clk 0:00:23.2]} 43. Rg1 {[%clk 0:00:09.8]} 43... Rb8 {[%clk 0:00:22]} 44.
b3 {[%clk 0:00:09]} 44... Kd7 {[%clk 0:00:21.3]} 45. Qf2 {[%clk 0:00:09.1]}
45... Bf3 {[%clk 0:00:20.3]} 46. Rf1 {[%clk 0:00:07.9]} 46... Bh5 {[%clk
0:00:21.1]} 47. Qd4+ {[%clk 0:00:07.7]} 47... Qd5 {[%clk 0:00:20.7]} 48. Qxd5+
{[%clk 0:00:07.2]} 48... exd5 {[%clk 0:00:22.6]} 49. Rf5 {[%clk 0:00:06]} 49...
Bg6 {[%clk 0:00:20.5]} 50. Rxd5+ {[%clk 0:00:06.9]} 50... Ke6 {[%clk 0:00:21.9]}
51. Ra5 {[%clk 0:00:06.1]} 51... Bxd3 {[%clk 0:00:20.9]} 52. Nxd3 {[%clk
0:00:08]} 52... f5 {[%clk 0:00:21.6]} 53. Rxa6+ {[%clk 0:00:08.7]} 53... Kd5
{[%clk 0:00:22.9]} 54. Ra4 {[%clk 0:00:09.3]} 54... Rh8 {[%clk 0:00:22.6]} 55.
Kb2 {[%clk 0:00:10.2]} 55... Rh1 {[%clk 0:00:22.6]} 56. Rf4 {[%clk 0:00:11]}
56... Ke6 {[%clk 0:00:23.6]} 57. b4 {[%clk 0:00:11.6]} 57... Kf6 {[%clk
0:00:24.9]} 58. Kb3 {[%clk 0:00:08.4]} 58... Kg5 {[%clk 0:00:26.1]} 59. b5
{[%clk 0:00:09.8]} 59... Rb1+ {[%clk 0:00:27.1]} 60. Kc4 {[%clk 0:00:08.9]}
60... Rd1 {[%clk 0:00:27.3]} 61. Rf2 {[%clk 0:00:08.9]} 61... Rb1 {[%clk
0:00:27.1]} 62. Kc5 {[%clk 0:00:09.1]} 62... Kg4 {[%clk 0:00:28.3]} 63. c4
{[%clk 0:00:08.8]} 63... Rb3 {[%clk 0:00:28.6]} 64. Ne5+ {[%clk 0:00:08.6]}
64... Kg5 {[%clk 0:00:28.5]} 65. b6 {[%clk 0:00:09.7]} 65... f4 {[%clk
0:00:29.8]} 66. Kc6 {[%clk 0:00:08.7]} 66... Kf5 {[%clk 0:00:31.1]} 67. Nd7
{[%clk 0:00:08]} 67... Ke4 {[%clk 0:00:32]} 68. Nc5+ {[%clk 0:00:08.9]} 68...
Ke3 {[%clk 0:00:32.6]} 69. Rxf4 {[%clk 0:00:04.9]} 1-0

[Event "*** Titled Tuesday Blitz"]
[Site "Chess.com"]
[Date "2018.06.05"]
[Round "3"]
[White "Ravan_02"]
[Black "GadimbayliA"]
[Result "0-1"]
[WhiteElo "2484"]
[BlackElo "2460"]
[TimeControl "180+2"]
[EndTime "13:44:14 PDT"]
[Termination "GadimbayliA won by resignation"]

1. Nf3 {[%clk 0:03:01.9]} 1... d5 {[%clk 0:02:53.2]} 2. g3 {[%clk 0:03:03.7]}
2... Nf6 {[%clk 0:02:53.7]} 3. Bg2 {[%clk 0:03:05.5]} 3... c6 {[%clk 0:02:55.6]}
4. O-O {[%clk 0:03:06.4]} 4... Bg4 {[%clk 0:02:54.5]} 5. d3 {[%clk 0:03:07.2]}
5... Nbd7 {[%clk 0:02:53.6]} 6. Nc3 {[%clk 0:03:07.9]} 6... e5 {[%clk
0:02:45.9]} 7. e4 {[%clk 0:03:08]} 7... Bd6 {[%clk 0:02:40.2]} 8. Qe1 {[%clk
0:02:58.9]} 8... O-O {[%clk 0:02:37.8]} 9. Nh4 {[%clk 0:02:56.9]} 9... Re8
{[%clk 0:02:33.1]} 10. exd5 {[%clk 0:02:42.6]} 10... cxd5 {[%clk 0:02:35]} 11.
Nxd5 {[%clk 0:02:41.5]} 11... Nxd5 {[%clk 0:02:33.5]} 12. Bxd5 {[%clk
0:02:43.4]} 12... Rc8 {[%clk 0:02:29.9]} 13. c3 {[%clk 0:02:35.6]} 13... Nc5
{[%clk 0:02:25.3]} 14. Qe3 {[%clk 0:02:11.7]} 14... Be7 {[%clk 0:02:14.4]} 15.
Bf3 {[%clk 0:02:09.9]} 15... Bxf3 {[%clk 0:02:04.4]} 16. Nxf3 {[%clk 0:02:10]}
16... Qxd3 {[%clk 0:02:05.2]} 17. Nxe5 {[%clk 0:02:04.4]} 17... Qd5 {[%clk
0:01:55]} 18. Qd4 {[%clk 0:01:31.2]} 18... Qe6 {[%clk 0:01:48.1]} 19. Bf4 {[%clk
0:01:31.1]} 19... Bf6 {[%clk 0:01:42.1]} 20. Rfe1 {[%clk 0:01:31.2]} 20... Qf5
{[%clk 0:01:15.7]} 21. Qd5 {[%clk 0:01:13.9]} 21... Re7 {[%clk 0:01:11.4]} 22.
Rad1 {[%clk 0:01:02.3]} 22... g5 {[%clk 0:01:00.7]} 23. Bc1 {[%clk 0:00:14.9]}
23... Rxe5 {[%clk 0:00:57.7]} 24. Rxe5 {[%clk 0:00:12.7]} 24... Qxe5 {[%clk
0:00:59.6]} 25. Qf3 {[%clk 0:00:13.5]} 25... Kg7 {[%clk 0:00:51.5]} 26. Be3
{[%clk 0:00:14.4]} 26... Ne4 {[%clk 0:00:47.9]} 27. Bd4 {[%clk 0:00:14.7]} 27...
Qe6 {[%clk 0:00:44.6]} 28. Re1 {[%clk 0:00:09.9]} 28... Bxd4 {[%clk 0:00:33.8]}
29. Rxe4 {[%clk 0:00:09.7]} 29... Be5 {[%clk 0:00:31.8]} 30. Qe2 {[%clk
0:00:09.2]} 30... Re8 {[%clk 0:00:30.3]} 31. Qh5 {[%clk 0:00:07.9]} 31... Qf5
{[%clk 0:00:28.1]} 32. Qe2 {[%clk 0:00:05.8]} 32... Re6 {[%clk 0:00:28.8]} 33.
Kg2 {[%clk 0:00:06.9]} 33... Bf6 {[%clk 0:00:28.7]} 34. Rxe6 {[%clk 0:00:07]}
34... Qxe6 {[%clk 0:00:30.6]} 35. Qf3 {[%clk 0:00:08.4]} 35... Qc6 {[%clk
0:00:31.6]} 36. Qxc6 {[%clk 0:00:08.7]} 36... bxc6 {[%clk 0:00:33.5]} 37. Kf3
{[%clk 0:00:10.5]} 37... Be5 {[%clk 0:00:17.8]} 38. Ke4 {[%clk 0:00:11.6]} 38...
Kf6 {[%clk 0:00:19.7]} 39. a4 {[%clk 0:00:10.6]} 39... Ke6 {[%clk 0:00:18.5]}
40. Kd3 {[%clk 0:00:11.8]} 40... f5 {[%clk 0:00:19.1]} 41. Kc4 {[%clk
0:00:12.3]} 41... g4 {[%clk 0:00:16.7]} 42. Kc5 {[%clk 0:00:12.7]} 42... Kd7
{[%clk 0:00:17.4]} 43. Kb4 {[%clk 0:00:13.9]} 43... Bc7 {[%clk 0:00:16.4]} 44.
a5 {[%clk 0:00:12.6]} 44... Ke6 {[%clk 0:00:14.9]} 45. Kc5 {[%clk 0:00:10.1]}
45... Bxa5 {[%clk 0:00:15.9]} 46. Kxc6 {[%clk 0:00:11.4]} 46... Bb6 {[%clk
0:00:17.8]} 47. c4 {[%clk 0:00:12.7]} 47... Bxf2 {[%clk 0:00:15.7]} 48. b4
{[%clk 0:00:13.8]} 48... Bg1 {[%clk 0:00:13.4]} 49. c5 {[%clk 0:00:14.8]} 49...
Bxh2 {[%clk 0:00:11.9]} 50. Kb7 {[%clk 0:00:16.1]} 50... Bxg3 {[%clk 0:00:13.3]}
51. Kxa7 {[%clk 0:00:17.1]} 51... Bf2 {[%clk 0:00:14.3]} 52. Kb7 {[%clk
0:00:16]} 52... Bg3 {[%clk 0:00:13.2]} 53. c6 {[%clk 0:00:14.5]} 53... Be5
{[%clk 0:00:12.4]} 54. b5 {[%clk 0:00:15.5]} 54... g3 {[%clk 0:00:13.8]} 55. b6
{[%clk 0:00:11.3]} 55... g2 {[%clk 0:00:15.2]} 56. c7 {[%clk 0:00:10.8]} 56...
Bxc7 {[%clk 0:00:16.2]} 57. bxc7 {[%clk 0:00:11.9]} 57... g1=Q {[%clk
0:00:18.1]} 58. c8=Q+ {[%clk 0:00:13.4]} 58... Ke5 {[%clk 0:00:19.4]} 59. Qc7+
{[%clk 0:00:14.4]} 59... Ke4 {[%clk 0:00:20.8]} 60. Qe7+ {[%clk 0:00:14.5]}
60... Kf4 {[%clk 0:00:20.9]} 61. Qh4+ {[%clk 0:00:12.9]} 61... Qg4 {[%clk
0:00:21.1]} 62. Qh6+ {[%clk 0:00:13.8]} 62... Kg3 {[%clk 0:00:21.8]} 63. Qxh7
{[%clk 0:00:10.7]} 63... f4 {[%clk 0:00:22.9]} 64. Qb1 {[%clk 0:00:09.3]} 64...
Kh3 {[%clk 0:00:22.7]} 65. Qh1+ {[%clk 0:00:09.5]} 65... Kg3 {[%clk 0:00:23.4]}
66. Qg1+ {[%clk 0:00:10.9]} 66... Kh4 {[%clk 0:00:24.8]} 67. Qe1+ {[%clk
0:00:07.1]} 67... Qg3 {[%clk 0:00:25]} 68. Qe7+ {[%clk 0:00:07.9]} 68... Kh3
{[%clk 0:00:26.1]} 69. Qe6+ {[%clk 0:00:06.7]} 69... Kh2 {[%clk 0:00:25.6]} 70.
Qh6+ {[%clk 0:00:06.4]} 70... Kg1 {[%clk 0:00:26.7]} 71. Qb6+ {[%clk 0:00:06.9]}
71... Kh1 {[%clk 0:00:25.2]} 72. Qh6+ {[%clk 0:00:07.6]} 72... Kg2 {[%clk
0:00:25.5]} 73. Qc6+ {[%clk 0:00:06.1]} 73... Qf3 {[%clk 0:00:26.2]} 0-1